[Event "*** Titled Tuesday Blitz"]
[Site "Chess.com"]
[Date "2018.05.01"]
[Round "5"]
[White "ChainsOfFantasia"]
[Black "platy3"]
[Result "0-1"]
[WhiteElo "2428"]
[BlackElo "2676"]
[TimeControl "180+2"]
[EndTime "14:10:09 PDT"]
[Termination "platy3 won by resignation"]

1. d4 {[%clk 0:03:00.9]} 1... Nf6 {[%clk 0:02:59.7]} 2. c4 {[%clk 0:02:59]} 2...
g6 {[%clk 0:03:00.8]} 3. Nf3 {[%clk 0:03:00.3]} 3... Bg7 {[%clk 0:03:01.8]} 4.
Nc3 {[%clk 0:03:02.2]} 4... O-O {[%clk 0:03:02.8]} 5. e3 {[%clk 0:03:03.4]} 5...
c5 {[%clk 0:03:02.2]} 6. Be2 {[%clk 0:03:02.2]} 6... cxd4 {[%clk 0:03:01.8]} 7.
exd4 {[%clk 0:03:02.8]} 7... d5 {[%clk 0:03:02.7]} 8. O-O {[%clk 0:03:01.2]}
8... Nc6 {[%clk 0:02:59.2]} 9. c5 {[%clk 0:02:59.4]} 9... Bg4 {[%clk 0:02:57.1]}
10. Be3 {[%clk 0:02:56]} 10... Bxf3 {[%clk 0:02:54.9]} 11. Bxf3 {[%clk
0:02:57.9]} 11... e6 {[%clk 0:02:55.9]} 12. b4 {[%clk 0:02:47]} 12... Nxb4
{[%clk 0:02:52]} 13. Qb3 {[%clk 0:02:45.1]} 13... Qa5 {[%clk 0:02:35.2]} 14.
Rab1 {[%clk 0:02:16.2]} 14... Nc6 {[%clk 0:02:36.2]} 15. Qxb7 {[%clk 0:02:16.6]}
15... Rfc8 {[%clk 0:02:33.8]} 16. Qb3 {[%clk 0:02:11.2]} 16... Rab8 {[%clk
0:02:23]} 17. Qc2 {[%clk 0:02:12.1]} 17... Nd7 {[%clk 0:02:19.3]} 18. Rfd1
{[%clk 0:01:48.9]} 18... Rxb1 {[%clk 0:02:14.6]} 19. Nxb1 {[%clk 0:01:50]} 19...
Rb8 {[%clk 0:02:10.9]} 20. Nc3 {[%clk 0:01:50.7]} 20... Qa3 {[%clk 0:02:02.7]}
21. Nxd5 {[%clk 0:01:47.2]} 21... exd5 {[%clk 0:01:50.4]} 22. Bxd5 {[%clk
0:01:49.1]} 22... Nb4 {[%clk 0:01:39.4]} 23. Bxf7+ {[%clk 0:01:40.8]} 23... Kxf7
{[%clk 0:01:08.3]} 24. Qc4+ {[%clk 0:01:41.1]} 24... Kf8 {[%clk 0:00:45.4]} 25.
Bf4 {[%clk 0:01:42.1]} 25... Qxa2 {[%clk 0:00:45.4]} 26. Bd6+ {[%clk 0:01:41.2]}
26... Ke8 {[%clk 0:00:46.3]} 27. Re1+ {[%clk 0:01:23.9]} 27... Kd8 {[%clk
0:00:47.5]} 28. Qxa2 {[%clk 0:00:54.5]} 28... Nxa2 {[%clk 0:00:47.9]} 29. Bxb8
{[%clk 0:00:56.4]} 29... Nxb8 {[%clk 0:00:48.4]} 30. d5 {[%clk 0:00:57.7]} 30...
Nb4 {[%clk 0:00:44.7]} 31. d6 {[%clk 0:00:54]} 31... N8c6 {[%clk 0:00:44.8]} 32.
Re3 {[%clk 0:00:47.1]} 32... a5 {[%clk 0:00:44.3]} 33. Rf3 {[%clk 0:00:48.2]}
33... Bd4 {[%clk 0:00:31.1]} 34. Rf8+ {[%clk 0:00:46]} 34... Kd7 {[%clk
0:00:32.2]} 35. Rf7+ {[%clk 0:00:47.9]} 35... Ke6 {[%clk 0:00:32.2]} 36. Rxh7
{[%clk 0:00:40.6]} 36... Bxc5 {[%clk 0:00:29.3]} 37. d7 {[%clk 0:00:35.9]} 37...
Be7 {[%clk 0:00:21.5]} 38. Rg7 {[%clk 0:00:28.3]} 38... a4 {[%clk 0:00:15.4]}
39. Rxg6+ {[%clk 0:00:25.3]} 39... Kxd7 {[%clk 0:00:16.6]} 40. Rg8 {[%clk
0:00:21.9]} 40... Na6 {[%clk 0:00:10.3]} 41. Rg4 {[%clk 0:00:21.3]} 41... Ncb4
{[%clk 0:00:09.5]} 42. Rd4+ {[%clk 0:00:22.1]} 42... Ke6 {[%clk 0:00:09.9]} 43.
Rd2 {[%clk 0:00:19.2]} 43... a3 {[%clk 0:00:10.4]} 44. g3 {[%clk 0:00:19.8]}
44... Bf6 {[%clk 0:00:10.8]} 45. Re2+ {[%clk 0:00:20.6]} 45... Kf7 {[%clk
0:00:11.6]} 46. Kg2 {[%clk 0:00:22]} 46... Bb2 {[%clk 0:00:12.4]} 47. Re1 {[%clk
0:00:16.5]} 47... a2 {[%clk 0:00:13.9]} 48. h4 {[%clk 0:00:17.3]} 48... Nd3
{[%clk 0:00:14.2]} 49. Rd1 {[%clk 0:00:17.3]} 49... Nc1 {[%clk 0:00:15.3]} 50.
Rd7+ {[%clk 0:00:17.3]} 50... Ke6 {[%clk 0:00:16.3]} 51. Rh7 {[%clk 0:00:16.5]}
51... a1=Q {[%clk 0:00:17.1]} 52. Rh6+ {[%clk 0:00:18.4]} 52... Kf7 {[%clk
0:00:17.7]} 53. Rh7+ {[%clk 0:00:19.3]} 53... Bg7 {[%clk 0:00:18]} 54. Rh5
{[%clk 0:00:19.5]} 54... Qb1 {[%clk 0:00:17.7]} 55. Ra5 {[%clk 0:00:19.4]} 55...
Qb7+ {[%clk 0:00:17.7]} 56. Kh2 {[%clk 0:00:19.2]} 56... Nb3 {[%clk 0:00:18.3]}
57. Rf5+ {[%clk 0:00:19.9]} 57... Ke6 {[%clk 0:00:19.3]} 58. Rf4 {[%clk
0:00:21.8]} 58... Nd2 {[%clk 0:00:19.1]} 59. h5 {[%clk 0:00:22.1]} 59... Bh6
{[%clk 0:00:14.3]} 60. Rg4 {[%clk 0:00:22]} 60... Nf1+ {[%clk 0:00:09.3]} 61.
Kg1 {[%clk 0:00:21.5]} 61... Kf5 {[%clk 0:00:07.8]} 62. Ra4 {[%clk 0:00:18.9]}
62... Nd2 {[%clk 0:00:07.1]} 63. Ra5+ {[%clk 0:00:17.2]} 63... Kg4 {[%clk
0:00:07]} 64. Ra4+ {[%clk 0:00:17.9]} 64... Kf3 {[%clk 0:00:07.4]} 65. Ra3+
{[%clk 0:00:17.5]} 65... Ke2 {[%clk 0:00:08.6]} 66. Re3+ {[%clk 0:00:18.1]}
66... Bxe3 {[%clk 0:00:09]} 0-1

[Event "*** Titled Tuesday Blitz"]
[Site "Chess.com"]
[Date "2018.05.01"]
[Round "5"]
[White "VerdeNotte"]
[Black "FabianoCaruana"]
[Result "1/2-1/2"]
[WhiteElo "2635"]
[BlackElo "2796"]
[TimeControl "180+2"]
[EndTime "14:10:53 PDT"]
[Termination "Game drawn by agreement"]

1. e4 {[%clk 0:03:01.9]} 1... e5 {[%clk 0:03:00.1]} 2. Nf3 {[%clk 0:03:02.8]}
2... Nc6 {[%clk 0:03:01.2]} 3. c3 {[%clk 0:03:04]} 3... Nf6 {[%clk 0:03:00.9]}
4. d4 {[%clk 0:03:04.9]} 4... exd4 {[%clk 0:02:56.8]} 5. e5 {[%clk 0:03:05.3]}
5... Ne4 {[%clk 0:02:57.9]} 6. Qe2 {[%clk 0:03:00.6]} 6... Nc5 {[%clk
0:02:41.9]} 7. cxd4 {[%clk 0:03:01]} 7... Ne6 {[%clk 0:02:43.2]} 8. d5 {[%clk
0:03:00.4]} 8... Ned4 {[%clk 0:02:37.3]} 9. Nxd4 {[%clk 0:02:41.4]} 9... Nxd4
{[%clk 0:02:39.2]} 10. Qe4 {[%clk 0:02:40.5]} 10... Bb4+ {[%clk 0:02:25.8]} 11.
Nc3 {[%clk 0:02:33.7]} 11... c5 {[%clk 0:02:26.6]} 12. Bd3 {[%clk 0:02:23.7]}
12... d6 {[%clk 0:02:05.1]} 13. exd6+ {[%clk 0:02:03.8]} 13... Kf8 {[%clk
0:02:05.3]} 14. Qf4 {[%clk 0:02:02.9]} 14... h5 {[%clk 0:01:24.8]} 15. O-O
{[%clk 0:01:57.3]} 15... Rh6 {[%clk 0:01:23]} 16. Ne4 {[%clk 0:01:49.7]} 16...
Bf5 {[%clk 0:01:10.3]} 17. Be3 {[%clk 0:01:16.1]} 17... g5 {[%clk 0:00:31.3]}
18. Qxg5 {[%clk 0:00:56.9]} 18... Nf3+ {[%clk 0:00:25.8]} 19. gxf3 {[%clk
0:00:55.1]} 19... Rg6 {[%clk 0:00:26.9]} 20. Kh1 {[%clk 0:00:46.1]} 20... Rxg5
{[%clk 0:00:26.6]} 21. Bxg5 {[%clk 0:00:48]} 21... Bxe4 {[%clk 0:00:21.4]} 22.
Bxd8 {[%clk 0:00:46.7]} 22... Bxf3+ {[%clk 0:00:22.1]} 23. Kg1 {[%clk
0:00:47.6]} 23... Rxd8 {[%clk 0:00:24]} 24. Rfc1 {[%clk 0:00:42.6]} 24... b6
{[%clk 0:00:17.7]} 25. a3 {[%clk 0:00:38]} 25... Bd2 {[%clk 0:00:18.3]} 26. Rc2
{[%clk 0:00:39.1]} 26... Bf4 {[%clk 0:00:19.6]} 27. Re1 {[%clk 0:00:39.2]} 27...
Rxd6 {[%clk 0:00:19.7]} 28. Be4 {[%clk 0:00:36.8]} 28... Bg4 {[%clk 0:00:20.7]}
29. b4 {[%clk 0:00:34.9]} 29... cxb4 {[%clk 0:00:18.2]} 30. axb4 {[%clk
0:00:36.8]} 30... Bd7 {[%clk 0:00:19.3]} 31. h4 {[%clk 0:00:33.4]} 31... Kg7
{[%clk 0:00:18.9]} 32. Kg2 {[%clk 0:00:32.6]} 32... a5 {[%clk 0:00:19.8]} 33.
Kf3 {[%clk 0:00:28.6]} 33... Be5 {[%clk 0:00:19.7]} 34. bxa5 {[%clk 0:00:28.7]}
34... bxa5 {[%clk 0:00:20.9]} 35. Rg1+ {[%clk 0:00:28]} 35... Kf6 {[%clk
0:00:21.7]} 36. Ke3 {[%clk 0:00:26.2]} 36... Rb6 {[%clk 0:00:22.5]} 37. f3
{[%clk 0:00:18.3]} 37... Rb3+ {[%clk 0:00:21.8]} 38. Kd2 {[%clk 0:00:16.5]}
38... Bf4+ {[%clk 0:00:22.7]} 39. Ke2 {[%clk 0:00:16.8]} 39... Bb5+ {[%clk
0:00:23.2]} 40. Kf2 {[%clk 0:00:18.3]} 40... Be3+ {[%clk 0:00:24.3]} 41. Kg2
{[%clk 0:00:19.8]} 41... Bxg1 {[%clk 0:00:25.8]} 42. Kxg1 {[%clk 0:00:21.7]}
42... a4 {[%clk 0:00:26.9]} 43. Kf2 {[%clk 0:00:11.7]} 43... a3 {[%clk 0:00:28]}
44. Kg3 {[%clk 0:00:13]} 44... Ke5 {[%clk 0:00:27.9]} 45. Rc7 {[%clk 0:00:12.1]}
45... f5 {[%clk 0:00:22.2]} 46. Re7+ {[%clk 0:00:10.3]} 46... Kd6 {[%clk
0:00:23.4]} 47. Re6+ {[%clk 0:00:11.6]} 47... Kc5 {[%clk 0:00:24.7]} 48. Bxf5
{[%clk 0:00:10.3]} 48... a2 {[%clk 0:00:25.8]} 49. Re1 {[%clk 0:00:10.9]} 49...
Ra3 {[%clk 0:00:21.1]} 50. Ra1 {[%clk 0:00:11.8]} 50... Kxd5 {[%clk 0:00:22]}
51. Bg6 {[%clk 0:00:13]} 51... Bc4 {[%clk 0:00:22.1]} 52. Bxh5 {[%clk
0:00:13.3]} 52... Kd4 {[%clk 0:00:22.2]} 53. Bg6 {[%clk 0:00:14]} 53... Bd5
{[%clk 0:00:20.9]} 54. Kg4 {[%clk 0:00:09.8]} 54... Bxf3+ {[%clk 0:00:21.2]} 55.
Kg5 {[%clk 0:00:10.8]} 55... Ra5+ {[%clk 0:00:21.5]} 56. Kf6 {[%clk 0:00:10.1]}
56... Ra6+ {[%clk 0:00:18.5]} 57. Kg5 {[%clk 0:00:10.5]} 57... Bd5 {[%clk
0:00:14.8]} 58. h5 {[%clk 0:00:11]} 58... Kc3 {[%clk 0:00:15]} 59. h6 {[%clk
0:00:11.1]} 59... Ra5 {[%clk 0:00:13.2]} 60. Kf6 {[%clk 0:00:09.7]} 60... Ra6+
{[%clk 0:00:10.3]} 61. Kg7 {[%clk 0:00:10.4]} 61... Ra7+ {[%clk 0:00:11.2]} 62.
Kf6 {[%clk 0:00:11.3]} 62... Bg8 {[%clk 0:00:12]} 63. h7 {[%clk 0:00:11.5]}
63... Bxh7 {[%clk 0:00:13.3]} 64. Bxh7 {[%clk 0:00:12.7]} 64... Kb2 {[%clk
0:00:14.9]} 65. Rxa2+ {[%clk 0:00:13.9]} 65... Kxa2 {[%clk 0:00:16.6]} 66. Bg8+
{[%clk 0:00:14.5]} 66... Kb2 {[%clk 0:00:18.5]} 67. Bf7 {[%clk 0:00:15.2]} 67...
Kc3 {[%clk 0:00:20.4]} 68. Be6 {[%clk 0:00:16.4]} 68... Ra5 {[%clk 0:00:22.3]}
69. Kg7 {[%clk 0:00:16.9]} 69... Kd4 {[%clk 0:00:24.2]} 70. Bg8 {[%clk
0:00:16.5]} 70... Ke5 {[%clk 0:00:26.1]} 71. Kh8 {[%clk 0:00:17.8]} 71... Kf6
{[%clk 0:00:27.5]} 72. Bh7 {[%clk 0:00:18.9]} 72... Rg5 {[%clk 0:00:27.8]} 73.
Bg8 {[%clk 0:00:18.7]} 73... Rg7 {[%clk 0:00:29.2]} 74. Bh7 {[%clk 0:00:19.2]}
74... Kf7 {[%clk 0:00:30.7]} 75. Bb1 {[%clk 0:00:18.4]} 75... Kf8 {[%clk
0:00:31.9]} 76. Bh7 {[%clk 0:00:15.7]} 76... Rg5 {[%clk 0:00:32]} 77. Be4 {[%clk
0:00:16.3]} 77... Rh5+ {[%clk 0:00:31.8]} 78. Bh7 {[%clk 0:00:17.1]} 78... Ke7
{[%clk 0:00:32.8]} 79. Kg7 {[%clk 0:00:17.9]} 79... Rg5+ {[%clk 0:00:34.1]} 80.
Kh8 {[%clk 0:00:18.9]} 80... Kf8 {[%clk 0:00:35.1]} 81. Bd3 {[%clk 0:00:19.1]}
81... Rg8+ {[%clk 0:00:36.6]} 82. Kh7 {[%clk 0:00:19.9]} 82... Rg3 {[%clk
0:00:38.5]} 83. Bf5 {[%clk 0:00:20.3]} 83... Rf3 {[%clk 0:00:39.2]} 84. Be4
{[%clk 0:00:20.3]} 84... Rf4 {[%clk 0:00:40.1]} 85. Bd3 {[%clk 0:00:20.4]} 85...
Rh4+ {[%clk 0:00:41.1]} 86. Kg6 {[%clk 0:00:21.3]} 86... Rh3 {[%clk 0:00:41.9]}
87. Bf5 {[%clk 0:00:22.1]} 87... Rh8 {[%clk 0:00:42]} 88. Be6 {[%clk 0:00:21.7]}
88... Rh2 {[%clk 0:00:42.5]} 89. Bf5 {[%clk 0:00:22]} 1/2-1/2

[Event "*** Titled Tuesday Blitz"]
[Site "Chess.com"]
[Date "2018.05.01"]
[Round "5"]
[White "NormWeinstein"]
[Black "SmoothAsAHedgehog"]
[Result "1-0"]
[WhiteElo "2312"]
[BlackElo "2513"]
[TimeControl "180+2"]
[EndTime "14:11:01 PDT"]
[Termination "NormWeinstein won on time"]

1. e4 {[%clk 0:03:01.9]} 1... c6 {[%clk 0:02:54.7]} 2. d4 {[%clk 0:03:01.4]}
2... d5 {[%clk 0:02:55]} 3. exd5 {[%clk 0:03:02.1]} 3... cxd5 {[%clk 0:02:55.9]}
4. c4 {[%clk 0:03:03.5]} 4... Nf6 {[%clk 0:02:56.6]} 5. Nc3 {[%clk 0:03:04.9]}
5... Nc6 {[%clk 0:02:57.5]} 6. Nf3 {[%clk 0:03:05.7]} 6... Bg4 {[%clk
0:02:58.4]} 7. cxd5 {[%clk 0:03:06.4]} 7... Nxd5 {[%clk 0:02:58.7]} 8. Bc4
{[%clk 0:03:07.7]} 8... e6 {[%clk 0:02:54.2]} 9. O-O {[%clk 0:03:07.3]} 9... Be7
{[%clk 0:02:49.8]} 10. h3 {[%clk 0:03:06.9]} 10... Bxf3 {[%clk 0:01:43.4]} 11.
Qxf3 {[%clk 0:03:06.2]} 11... Nxc3 {[%clk 0:01:29.1]} 12. bxc3 {[%clk
0:03:05.4]} 12... O-O {[%clk 0:01:29.3]} 13. Rb1 {[%clk 0:03:03.4]} 13... Na5
{[%clk 0:01:28.8]} 14. Bd3 {[%clk 0:03:04.1]} 14... Rc8 {[%clk 0:01:21.8]} 15.
Bd2 {[%clk 0:02:53.8]} 15... b6 {[%clk 0:01:19.7]} 16. Rb5 {[%clk 0:02:32.9]}
16... Nc4 {[%clk 0:01:16.6]} 17. Bc1 {[%clk 0:02:33.4]} 17... Bf6 {[%clk
0:01:06.1]} 18. Rd1 {[%clk 0:02:06.1]} 18... a6 {[%clk 0:00:54.6]} 19. Rb1
{[%clk 0:01:57]} 19... b5 {[%clk 0:00:51.8]} 20. Qb7 {[%clk 0:01:52.6]} 20...
Qd6 {[%clk 0:00:41.5]} 21. a4 {[%clk 0:01:45.6]} 21... bxa4 {[%clk 0:00:23.9]}
22. Rb4 {[%clk 0:01:44.9]} 22... Na5 {[%clk 0:00:17.9]} 23. Qe4 {[%clk
0:01:39.4]} 23... g6 {[%clk 0:00:16.9]} 24. Rxa4 {[%clk 0:01:40.1]} 24... Qb6
{[%clk 0:00:13.7]} 25. Bd2 {[%clk 0:01:25.3]} 25... Nb3 {[%clk 0:00:08.4]} 26.
Be1 {[%clk 0:01:25.4]} 26... a5 {[%clk 0:00:05.9]} 27. Rb1 {[%clk 0:01:25.9]}
27... Rb8 {[%clk 0:00:06.3]} 28. Ra3 {[%clk 0:01:24.2]} 28... a4 {[%clk
0:00:06.3]} 29. Rxa4 {[%clk 0:01:24.7]} 29... Qc7 {[%clk 0:00:06.8]} 30. Rc4
{[%clk 0:01:21.6]} 30... Qd8 {[%clk 0:00:05.3]} 31. Ra4 {[%clk 0:01:16.2]} 31...
Qc7 {[%clk 0:00:05.1]} 32. Bc4 {[%clk 0:01:07.2]} 32... Na5 {[%clk 0:00:04.8]}
33. Rxb8 {[%clk 0:01:05.2]} 33... Rxb8 {[%clk 0:00:06.7]} 34. Bf1 {[%clk
0:01:04.6]} 34... h5 {[%clk 0:00:06.3]} 35. c4 {[%clk 0:01:02.9]} 35... Nb3
{[%clk 0:00:07]} 36. Bc3 {[%clk 0:00:50.6]} 36... Nc5 {[%clk 0:00:07.8]} 37.
dxc5 {[%clk 0:00:48.1]} 37... Bxc3 {[%clk 0:00:09.6]} 38. c6 {[%clk 0:00:47.8]}
38... Rb6 {[%clk 0:00:09.1]} 39. Qd3 {[%clk 0:00:39.6]} 39... Bf6 {[%clk
0:00:08.9]} 40. Ra8+ {[%clk 0:00:39.9]} 40... Kg7 {[%clk 0:00:09.1]} 41. Qd7
{[%clk 0:00:35]} 41... Rxc6 {[%clk 0:00:09.2]} 42. Qxc7 {[%clk 0:00:35.1]} 42...
Rxc7 {[%clk 0:00:11]} 43. Bd3 {[%clk 0:00:33.5]} 43... Bd4 {[%clk 0:00:11.4]}
44. Kf1 {[%clk 0:00:33.6]} 44... Rb7 {[%clk 0:00:11.7]} 45. Rd8 {[%clk
0:00:30.7]} 45... e5 {[%clk 0:00:12]} 46. Rd5 {[%clk 0:00:23.8]} 46... Rb2
{[%clk 0:00:12]} 47. f4 {[%clk 0:00:22.9]} 47... Rf2+ {[%clk 0:00:11.5]} 48. Ke1
{[%clk 0:00:24.3]} 48... Rxf4 {[%clk 0:00:12.2]} 49. c5 {[%clk 0:00:25.2]} 49...
Bc3+ {[%clk 0:00:11.5]} 50. Kd1 {[%clk 0:00:24.5]} 50... Ra4 {[%clk 0:00:09.5]}
51. c6 {[%clk 0:00:22.8]} 51... Ra7 {[%clk 0:00:10.4]} 52. Bb5 {[%clk
0:00:16.5]} 52... Bd4 {[%clk 0:00:09.6]} 53. Kc2 {[%clk 0:00:16.8]} 53... f5
{[%clk 0:00:10.3]} 54. Kd3 {[%clk 0:00:17.2]} 54... Kf6 {[%clk 0:00:11.3]} 55.
Rd6+ {[%clk 0:00:18]} 55... Kg5 {[%clk 0:00:11.8]} 56. Kc4 {[%clk 0:00:18.1]}
56... Rc7 {[%clk 0:00:09.9]} 57. Kd5 {[%clk 0:00:18.7]} 57... Kf4 {[%clk
0:00:10]} 58. Rxg6 {[%clk 0:00:19]} 58... e4 {[%clk 0:00:11.2]} 59. Kd6 {[%clk
0:00:18]} 59... Bb6 {[%clk 0:00:10.9]} 60. Rh6 {[%clk 0:00:15.4]} 60... Kg5
{[%clk 0:00:11.3]} 61. Rh8 {[%clk 0:00:15.5]} 61... f4 {[%clk 0:00:11.5]} 62.
Rg8+ {[%clk 0:00:16.9]} 62... Kh4 {[%clk 0:00:12.3]} 63. Be2 {[%clk 0:00:17.6]}
63... Rf7 {[%clk 0:00:08.3]} 64. Ke6 {[%clk 0:00:15.4]} 64... f3 {[%clk
0:00:07]} 65. gxf3 {[%clk 0:00:11.3]} 65... exf3 {[%clk 0:00:03.5]} 66. Bf1
{[%clk 0:00:12.2]} 66... Rc7 {[%clk 0:00:03.8]} 67. Kd6 {[%clk 0:00:12.8]} 67...
Rf7 {[%clk 0:00:04.6]} 68. Rc8 {[%clk 0:00:11.1]} 68... f2 {[%clk 0:00:04.6]}
69. Rg8 {[%clk 0:00:11.3]} 69... Bc7+ {[%clk 0:00:03.2]} 70. Ke6 {[%clk
0:00:11.8]} 70... Rh7 {[%clk 0:00:03.9]} 71. Rf8 {[%clk 0:00:10.5]} 71... Bb6
{[%clk 0:00:05.1]} 72. Rf3 {[%clk 0:00:10.6]} 72... Rc7 {[%clk 0:00:04.9]} 73.
Kd6 {[%clk 0:00:11.6]} 73... Rg7 {[%clk 0:00:05.3]} 74. Be2 {[%clk 0:00:12]}
74... Rg1 {[%clk 0:00:04.8]} 75. Rb3 {[%clk 0:00:09.6]} 75... Ba5 {[%clk
0:00:04.4]} 76. Rb5 {[%clk 0:00:09.8]} 76... Bd8 {[%clk 0:00:05.1]} 77. Kd7
{[%clk 0:00:09.8]} 77... Rg8 {[%clk 0:00:02.8]} 78. Rb3 {[%clk 0:00:07.7]} 1-0

[Event "*** Titled Tuesday Blitz"]
[Site "Chess.com"]
[Date "2018.05.01"]
[Round "6"]
[White "Vusatiuk_Vladimir"]
[Black "colegiodemadrid"]
[Result "1-0"]
[WhiteElo "2201"]
[BlackElo "2275"]
[TimeControl "180+2"]
[EndTime "14:15:56 PDT"]
[Termination "Vusatiuk_Vladimir won by resignation"]

1. e4 {[%clk 0:02:59.4]} 1... c5 {[%clk 0:02:59.7]} 2. Nc3 {[%clk 0:02:57.5]}
2... a6 {[%clk 0:02:59.9]} 3. f4 {[%clk 0:02:58.4]} 3... e6 {[%clk 0:03:00.1]}
4. Nf3 {[%clk 0:03:00.3]} 4... Nc6 {[%clk 0:03:00.5]} 5. Be2 {[%clk 0:03:01.3]}
5... Nf6 {[%clk 0:02:59.8]} 6. O-O {[%clk 0:03:00.7]} 6... d5 {[%clk 0:03:01.1]}
7. exd5 {[%clk 0:03:01.5]} 7... exd5 {[%clk 0:02:57.5]} 8. d4 {[%clk 0:03:02.3]}
8... cxd4 {[%clk 0:02:57]} 9. Nxd4 {[%clk 0:03:02.4]} 9... Bc5 {[%clk 0:02:57]}
10. Be3 {[%clk 0:02:57.9]} 10... Qe7 {[%clk 0:02:53.3]} 11. Qd2 {[%clk
0:02:32.2]} 11... O-O {[%clk 0:02:51.6]} 12. Kh1 {[%clk 0:02:33.1]} 12... Ne4
{[%clk 0:02:37.8]} 13. Nxe4 {[%clk 0:02:29.8]} 13... dxe4 {[%clk 0:02:29.2]} 14.
Nxc6 {[%clk 0:02:23]} 14... bxc6 {[%clk 0:02:28.2]} 15. Bc4 {[%clk 0:02:24.3]}
15... Rd8 {[%clk 0:02:21.5]} 16. Bxc5 {[%clk 0:02:13.5]} 1-0

[Event "*** Titled Tuesday Blitz"]
[Site "Chess.com"]
[Date "2018.05.01"]
[Round "6"]
[White "Karina_Oparina"]
[Black "saraswathii"]
[Result "1/2-1/2"]
[WhiteElo "2100"]
[BlackElo "2257"]
[TimeControl "180+2"]
[EndTime "14:16:02 PDT"]
[Termination "Game drawn by repetition"]

1. Nf3 {[%clk 0:02:59.2]} 1... Nc6 {[%clk 0:02:58.8]} 2. c4 {[%clk 0:02:53.7]}
2... d6 {[%clk 0:02:58.7]} 3. d4 {[%clk 0:02:53.8]} 3... Nf6 {[%clk 0:02:59.6]}
4. g3 {[%clk 0:02:53.6]} 4... g6 {[%clk 0:02:59.9]} 5. Bg2 {[%clk 0:02:54]} 5...
Bg7 {[%clk 0:03:01.1]} 6. O-O {[%clk 0:02:54.4]} 6... O-O {[%clk 0:03:02.4]} 7.
Nc3 {[%clk 0:02:55.1]} 7... e5 {[%clk 0:03:03.3]} 8. d5 {[%clk 0:02:53.2]} 8...
Ne7 {[%clk 0:03:03.7]} 9. e4 {[%clk 0:02:52.8]} 9... Nh5 {[%clk 0:03:02.1]} 10.
h3 {[%clk 0:02:41.6]} 10... f5 {[%clk 0:02:59.4]} 11. b4 {[%clk 0:02:34.5]}
11... Nf6 {[%clk 0:02:59]} 12. Rb1 {[%clk 0:02:28]} 12... fxe4 {[%clk
0:02:51.1]} 13. Ng5 {[%clk 0:02:28.4]} 13... Nf5 {[%clk 0:02:47.5]} 14. Ngxe4
{[%clk 0:02:26.6]} 14... Nd4 {[%clk 0:02:45]} 15. Be3 {[%clk 0:02:19.5]} 15...
Nf5 {[%clk 0:02:35.5]} 16. Bc1 {[%clk 0:02:17.6]} 16... Nd4 {[%clk 0:02:34.9]}
17. Be3 {[%clk 0:02:18]} 17... Nf5 {[%clk 0:02:34.6]} 18. Bc1 {[%clk 0:02:18.6]}
18... Nd4 {[%clk 0:02:18.1]} 19. Be3 {[%clk 0:02:18.8]} 19... Nf5 {[%clk
0:02:12.6]} 1/2-1/2

[Event "*** Titled Tuesday Blitz"]
[Site "Chess.com"]
[Date "2018.05.01"]
[Round "6"]
[White "popov_m"]
[Black "SipkeErnst"]
[Result "0-1"]
[WhiteElo "2385"]
[BlackElo "2523"]
[TimeControl "180+2"]
[EndTime "14:17:05 PDT"]
[Termination "SipkeErnst won by resignation"]

1. d4 {[%clk 0:03:01.9]} 1... Nf6 {[%clk 0:02:59.5]} 2. Bf4 {[%clk 0:03:00]}
2... d5 {[%clk 0:02:57.8]} 3. e3 {[%clk 0:03:00.9]} 3... e6 {[%clk 0:02:59.1]}
4. Nf3 {[%clk 0:03:00.3]} 4... c5 {[%clk 0:03:00.5]} 5. Nbd2 {[%clk 0:03:01.5]}
5... Bd6 {[%clk 0:03:00.7]} 6. Bg3 {[%clk 0:03:02.1]} 6... b6 {[%clk 0:02:59.3]}
7. c3 {[%clk 0:03:02.9]} 7... O-O {[%clk 0:02:59.8]} 8. Bd3 {[%clk 0:03:01.9]}
8... Ba6 {[%clk 0:02:59.7]} 9. Bxa6 {[%clk 0:02:59.1]} 9... Nxa6 {[%clk
0:03:01.6]} 10. Qe2 {[%clk 0:02:59.8]} 10... Nc7 {[%clk 0:03:01.7]} 11. dxc5
{[%clk 0:02:56.1]} 11... bxc5 {[%clk 0:02:59.7]} 12. e4 {[%clk 0:02:57.7]} 12...
Be7 {[%clk 0:02:57.6]} 13. O-O {[%clk 0:02:51.7]} 13... a5 {[%clk 0:02:57.8]}
14. e5 {[%clk 0:02:28.3]} 14... Nh5 {[%clk 0:02:53.1]} 15. Ne1 {[%clk
0:02:28.2]} 15... Nxg3 {[%clk 0:02:53.1]} 16. hxg3 {[%clk 0:02:30.1]} 16... Qb8
{[%clk 0:02:51.6]} 17. Rb1 {[%clk 0:02:29]} 17... c4 {[%clk 0:02:47.2]} 18. Nc2
{[%clk 0:02:24.6]} 18... Ra6 {[%clk 0:02:28.9]} 19. b3 {[%clk 0:02:08.4]} 19...
cxb3 {[%clk 0:02:28.6]} 20. Nxb3 {[%clk 0:02:03.3]} 20... Rb6 {[%clk 0:02:27.4]}
21. Nbd4 {[%clk 0:02:03.5]} 21... Rxb1 {[%clk 0:02:27]} 22. Nc6 {[%clk
0:02:00.3]} 22... Rxf1+ {[%clk 0:02:27.3]} 23. Qxf1 {[%clk 0:02:01.3]} 23... Qe8
{[%clk 0:02:26.9]} 24. N2d4 {[%clk 0:02:02.8]} 24... Bc5 {[%clk 0:02:27.1]} 25.
Qc1 {[%clk 0:01:56.2]} 25... Bxd4 {[%clk 0:02:27.5]} 26. cxd4 {[%clk 0:01:57.1]}
26... Na6 {[%clk 0:02:17.7]} 27. Qc3 {[%clk 0:01:53.8]} 27... Nb4 {[%clk
0:02:18.1]} 28. Nxa5 {[%clk 0:01:53.5]} 28... Qb5 {[%clk 0:02:18]} 29. Nb3
{[%clk 0:01:52.3]} 29... Qc4 {[%clk 0:02:18.3]} 0-1